bitfinex/quotes_ETHUSD_20230118
["timestamp","ask_amount","ask_price","bid_price","bid_amount"]
[1674023942075,0.0673732,1585.1,1585.0,29.42770254]
[1674023942261,0.0673732,1585.1,1585.0,30.52319976]
[1674023942472,0.0673732,1585.1,1585.0,29.42770254]
[1674023943312,0.0673732,1585.1,1585.0,30.52319534]
[1674023943662,0.0673732,1585.1,1585.0,34.18784659]
[1674023943968,0.0673732,1585.1,1585.0,30.52319605]
[1674023946384,0.0673732,1585.1,1585.0,31.8278331]
[1674023947230,0.0673732,1585.1,1585.0,35.49248364]
[1674023948875,0.0673732,1585.1,1585.0,31.8278331]
[1674023951272,0.0673732,1585.1,1585.0,32.48910135]
[1674023951516,0.0673732,1585.1,1585.0,31.8278331]
[1674023951923,0.0673732,1585.1,1585.0,32.48910135]
[1674023952128,0.0673732,1585.1,1585.0,36.15375189]
[1674023953450,0.08121344,1585.3,1585.1,1.0]
[1674023953598,0.08121344,1585.3,1585.2,28.45002407]
[1674023954156,0.08121344,1585.3,1585.2,29.54546319]
[1674023954348,0.08121344,1585.3,1585.2,30.85245803]
[1674023955190,0.08121344,1585.3,1585.2,35.17837682]
[1674023955406,0.08121344,1585.3,1585.2,40.36127919]
[1674023955644,0.08121344,1585.3,1585.2,39.70001094]
[1674023956119,3.44e-06,1585.3,1585.2,41.02232218]
[1674023956466,0.10821893,1585.4,1585.3,1.64199656]
[1674023956657,0.10821893,1585.4,1585.3,39.56809605]
[1674023957093,0.10821893,1585.4,1585.3,38.57731648]
[1674023957433,0.10821893,1585.4,1585.3,39.57816009]
[1674023957641,0.10821893,1585.4,1585.3,38.91764038]
[1674023957860,0.10821893,1585.4,1585.3,46.75154038]
[1674023958177,0.09816563,1585.5,1585.3,53.72007205]
[1674023958483,0.09816563,1585.5,1585.4,36.52987695]
[1674023958654,0.09816563,1585.5,1585.4,39.52987695]
[1674023958873,0.09816563,1585.5,1585.4,35.20471524]
[1674023959060,0.09816563,1585.5,1585.4,46.16687695]
[1674023959532,0.09816563,1585.5,1585.4,34.01471524]
[1674023960484,0.09816563,1585.5,1585.4,32.7077204]
[1674023960698,0.09816563,1585.5,1585.4,31.61228128]
[1674023960908,0.09816563,1585.5,1585.4,32.70756416]
[1674023961698,0.09816563,1585.5,1585.4,34.01268761]
[1674023961961,0.09816563,1585.5,1585.4,34.06340642]
[1674023964485,0.09816563,1585.5,1585.4,34.05983122]
[1674023964805,0.09816563,1585.5,1585.4,30.45842738]
[1674023965338,0.41757308,1585.5,1585.4,30.45842738]
[1674023971174,0.41757308,1585.5,1585.4,25.08642017]
[1674023974219,0.41757308,1585.5,1585.4,22.08642017]
[1674023975112,0.41757308,1585.5,1585.4,23.18171996]
[1674023975335,0.41757308,1585.5,1585.4,24.48756835]
[1674023975538,0.41757308,1585.5,1585.4,23.18171996]
[1674023975746,0.41757308,1585.5,1585.4,26.98133413]
[1674023976482,0.41757308,1585.5,1585.4,28.28736623]
[1674023977532,0.41757308,1585.5,1585.4,26.98133413]
[1674023978387,0.41757308,1585.5,1585.4,28.28747532]
[1674023979263,0.41757308,1585.5,1585.4,28.94798649]
[1674023979475,0.41757308,1585.5,1585.4,28.28747532]
[1674023981093,0.41757308,1585.5,1585.4,26.98133413]
[1674023981687,0.41757308,1585.5,1585.4,26.98134823]
[1674023981889,0.41757308,1585.5,1585.4,28.28753382]
[1674023982840,0.41757308,1585.5,1585.4,28.28765343]
[1674023983469,0.41757308,1585.5,1585.4,28.28765382]
[1674023983684,0.41757308,1585.5,1585.4,26.98134823]
[1674023984314,0.41757308,1585.5,1585.4,28.2878904]
[1674023985150,0.41757308,1585.5,1585.4,24.48827623]
[1674023985838,0.41757308,1585.5,1585.4,23.18173406]
[1674023986432,0.41542793,1585.5,1585.4,23.18173406]
[1674023988155,0.41542793,1585.5,1585.4,22.08642017]
[1674023988522,0.41542793,1585.5,1585.4,23.18176841]
[1674023990254,0.41542793,1585.5,1585.4,22.08642017]
[1674023990405,0.41542793,1585.5,1585.4,23.18177926]
[1674023991142,0.41542793,1585.5,1585.4,30.0468056]
[1674023992557,0.41542793,1585.5,1585.4,31.03757801]
[1674023993983,0.41542793,1585.5,1585.4,30.0468056]
[1674023994448,0.41542793,1585.5,1585.4,31.03757801]
[1674023995869,0.41542793,1585.5,1585.4,30.0468056]
[1674023996556,0.41542793,1585.5,1585.4,31.03757801]
[1674023996721,0.41542793,1585.5,1585.4,30.37706684]
[1674023996940,0.41542793,1585.5,1585.4,31.03866882]
[1674023997689,0.41542793,1585.5,1585.4,30.04789641]
[1674023998326,0.41542793,1585.5,1585.4,24.48921433]
[1674024002427,0.41542793,1585.5,1585.4,21.37616546]
[1674024002739,0.41542793,1585.5,1585.4,20.06878384]
[1674024004295,0.41542793,1585.5,1585.4,20.06877877]
[1674024006224,0.41542793,1585.5,1585.4,20.06876897]
[1674024006437,0.41542793,1585.5,1585.4,18.9733713]
[1674024009585,0.41542793,1585.5,1585.4,12.6658213]
[1674024012181,0.41542793,1585.5,1585.4,0.0507213]
[1674024012858,0.64588653,1585.5,1585.4,0.0507213]
[1674024013149,1.83688653,1585.5,1585.4,0.0507213]
[1674024014832,1.83688653,1585.5,1585.3,12.66861786]
[1674024015040,1.60642793,1585.5,1585.3,12.66861786]
[1674024019753,1.60642793,1585.5,1585.3,6.36066786]
[1674024021128,1.60642793,1585.5,1585.3,0.04960975]
[1674024021461,1.60642793,1585.5,1585.2,6.35763975]
[1674024023456,1.201,1585.3,1585.2,0.04960975]
[1674024023646,2.401,1585.3,1585.2,0.04960975]
[1674024024836,2.40362522,1585.3,1585.2,0.04960975]
[1674024027746,2.40362522,1585.3,1585.0,6.35855975]
[1674024027987,1.201,1585.1,1585.0,6.35855975]
[1674024034348,0.066,1585.3,1585.0,30.68655168]
[1674024034675,0.066,1585.3,1585.2,18.92505]
[1674024034830,0.066,1585.3,1585.2,22.04167407]
[1674024035931,0.066,1585.3,1585.2,23.13711634]
[1674024036137,0.066,1585.3,1585.2,25.51698817]
[1674024037882,0.066,1585.3,1585.2,26.83797882]
[1674024039196,0.066,1585.3,1585.2,27.4995808]
[1674024040944,0.066,1585.3,1585.2,26.83797882]
[1674024041154,0.066,1585.3,1585.2,27.4995808]
[1674024041717,0.066,1585.3,1585.2,26.83797882]
[1674024042579,0.06294954,1585.3,1585.2,27.4995808]
[1674024042873,0.06294954,1585.3,1585.2,28.7005808]
[1674024043051,0.06294954,1585.3,1585.2,31.7005808]
[1674024043243,0.06294954,1585.3,1585.2,36.35600375]
[1674024044081,0.06294954,1585.3,1585.2,31.7005808]
[1674024044751,0.06294954,1585.3,1585.2,36.35600375]
[1674024045380,0.06294954,1585.3,1585.2,35.69440177]
[1674024045570,0.06294954,1585.3,1585.2,36.3550421]
[1674024045778,0.06294954,1585.3,1585.2,32.69039156]
[1674024046025,0.06294954,1585.3,1585.2,36.3550421]
[1674024046179,0.06294954,1585.3,1585.2,32.69039156]
[1674024046978,0.06294954,1585.3,1585.2,32.02975123]
[1674024047498,0.06294954,1585.3,1585.2,32.69029421]
[1674024048384,0.06294954,1585.3,1585.2,32.02975123]
[1674024049444,0.06294954,1585.3,1585.2,32.69022646]
[1674024049650,0.06294954,1585.3,1585.2,32.02975123]
[1674024051085,0.09602048,1585.5,1585.2,32.07936098]
[1674024051446,0.09602048,1585.5,1585.3,11.08043999]
[1674024051619,0.09602048,1585.5,1585.4,20.01809227]
[1674024054817,0.09602048,1585.5,1585.4,18.92265]
[1674024064063,0.0930591,1585.5,1585.4,18.92265]
[1674024064533,0.0930591,1585.5,1585.4,19.21422887]
[1674024065233,0.0930591,1585.5,1585.4,21.20783641]
[1674024068166,1.3980591,1585.5,1585.4,12.90667887]
[1674024068378,1.3980591,1585.5,1585.4,0.29157887]
[1674024073155,2.5900591,1585.5,1585.4,0.29157887]
[1674024079065,1.2850591,1585.5,1585.4,0.29157887]
[1674024080186,0.0930591,1585.5,1585.4,23.42620781]
[1674024080405,0.0930591,1585.5,1585.4,26.88173215]
[1674024080612,0.0930591,1585.5,1585.4,28.19697753]
[1674024080821,0.0930591,1585.5,1585.4,28.85741508]
[1674024081222,0.0930591,1585.5,1585.4,28.19697753]
[1674024081547,0.0930591,1585.5,1585.4,28.85741508]
[1674024081961,0.0930591,1585.5,1585.4,28.19697753]
[1674024083112,0.0930591,1585.5,1585.4,28.85741508]
[1674024086374,0.0930591,1585.5,1585.4,28.85652663]
[1674024086585,0.0930591,1585.5,1585.4,28.85741508]
[1674024087117,0.0930591,1585.5,1585.4,30.04741508]
[1674024087837,0.09029483,1585.5,1585.4,30.04741508]
[1674024091513,0.09029483,1585.5,1585.4,29.38697753]
[1674024093093,0.09029483,1585.5,1585.4,28.85741508]
[1674024093840,0.09029483,1585.5,1585.4,28.19697753]
[1674024095861,0.09029483,1585.5,1585.4,28.85741508]
[1674024096422,0.09029483,1585.5,1585.4,28.19697753]
[1674024096940,0.09029483,1585.5,1585.4,28.85741508]
[1674024097323,0.09029483,1585.5,1585.4,28.19697753]
[1674024097650,0.09029483,1585.5,1585.4,25.08035346]
[1674024102908,0.09029483,1585.5,1585.4,23.76510808]
[1674024103299,0.09029483,1585.5,1585.4,25.07966931]
[1674024103751,0.09029483,1585.5,1585.4,23.76510808]
[1674024105129,0.09029483,1585.5,1585.4,25.07963619]
[1674024107614,0.09029483,1585.5,1585.4,25.74007374]
[1674024111607,0.09029483,1585.5,1585.4,25.07963619]
[1674024112447,0.08769153,1585.5,1585.4,25.74007374]
[1674024115948,0.08769153,1585.5,1585.4,26.73084615]
[1674024116154,0.08769153,1585.5,1585.4,25.74007374]
[1674024116672,0.08769153,1585.5,1585.4,26.73084615]
[1674024116879,0.08769153,1585.5,1585.4,29.84747022]
[1674024117123,0.08769153,1585.5,1585.4,30.38803267]
[1674024118592,0.08769153,1585.5,1585.4,36.0343016]
[1674024118810,0.08769153,1585.5,1585.4,37.38506019]
[1674024120135,0.08769153,1585.5,1585.4,33.72040965]
[1674024121886,0.08769153,1585.5,1585.4,39.03513975]
[1674024122026,0.08769153,1585.5,1585.4,37.38506019]
[1674024122235,0.08769153,1585.5,1585.4,33.72040965]
[1674024125023,0.08769153,1585.5,1585.4,33.38927162]
[1674024125235,0.08769153,1585.5,1585.4,34.71242101]
[1674024129172,0.08769153,1585.5,1585.4,33.38927162]
[1674024132462,0.08769153,1585.5,1585.4,34.71223684]
[1674024132788,0.08769153,1585.5,1585.4,33.72040965]
[1674024134416,0.03812554,1585.6,1585.5,1.05287616]
[1674024134633,0.03812554,1585.6,1585.5,17.09076043]
[1674024134882,0.03812554,1585.6,1585.5,34.69768232]
[1674024135094,0.03812554,1585.6,1585.5,36.01221043]
[1674024135467,0.03812554,1585.6,1585.5,35.02059322]
[1674024136366,0.03812554,1585.6,1585.5,38.6845436]
[1674024136733,0.00012554,1585.6,1585.5,46.8490985]
[1674024137097,0.04021729,1585.7,1585.6,26.61254922]
[1674024137310,0.04021729,1585.7,1585.6,45.34105083]
[1674024137671,0.04021729,1585.7,1585.6,46.99098409]
[1674024138153,0.04021729,1585.7,1585.6,44.65278734]
[1674024138355,0.04021729,1585.7,1585.6,36.46420072]
[1674024138565,0.04021729,1585.7,1585.6,37.32691334]
[1674024139356,0.04021729,1585.7,1585.6,38.97890965]
[1674024139579,0.04021729,1585.7,1585.6,37.32691334]
[1674024141295,0.04021729,1585.7,1585.6,37.34091334]
[1674024141509,0.04021729,1585.7,1585.6,37.37652309]
[1674024142413,0.04021729,1585.7,1585.6,42.5696861]
[1674024143098,0.04021729,1585.7,1585.6,47.94602293]
[1674024143316,0.04021729,1585.7,1585.6,48.17602293]
[1674024144136,0.04021729,1585.7,1585.6,48.99332539]
[1674024144346,0.04021729,1585.7,1585.6,50.64214581]
[1674024144535,0.04021729,1585.7,1585.6,48.99332539]
[1674024144858,0.04021729,1585.7,1585.6,50.64227559]
[1674024145798,0.04021729,1585.7,1585.6,40.84533921]
[1674024146094,0.04021729,1585.7,1585.6,38.57505587]
[1674024146306,0.04021729,1585.7,1585.6,39.56439657]
[1674024147184,0.04021729,1585.7,1585.6,39.56443613]
[1674024147354,0.04021729,1585.7,1585.6,39.50916691]
[1674024147819,0.04021729,1585.7,1585.6,38.1899252]
[1674024148035,0.04021729,1585.7,1585.6,26.14540055]
[1674024148279,0.04021729,1585.7,1585.6,24.4963968]
[1674024149508,0.04021729,1585.7,1585.6,25.15602029]
[1674024150155,0.04021729,1585.7,1585.6,27.4963968]
[1674024151878,0.04021729,1585.7,1585.6,28.15602029]
[1674024152576,0.04021729,1585.7,1585.6,27.4963968]
[1674024154589,0.04021729,1585.7,1585.6,40.70713217]
[1674024154805,1.0402082,1585.8,1585.7,1.02590969]
[1674024154996,1.0402082,1585.8,1585.7,30.12145711]
[1674024155541,1.0402082,1585.8,1585.7,30.11903124]
[1674024158197,1.0402082,1585.8,1585.7,29.45904395]
[1674024158422,1.0402082,1585.8,1585.7,35.0986543]
[1674024158729,1.0402082,1585.8,1585.7,34.43859651]
[1674024159968,1.0402082,1585.8,1585.7,35.63959651]
[1674024160989,1.0402082,1585.8,1585.7,35.86659651]
[1674024161406,1.0402082,1585.8,1585.7,36.1513199]
[1674024165241,1.0402082,1585.8,1585.7,37.47056161]
[1674024167445,1.0402082,1585.8,1585.7,36.48058853]
[1674024167832,1.0402082,1585.8,1585.7,35.05258853]
[1674024169069,1.0402082,1585.8,1585.7,38.11753873]
[1674024169328,1.0402082,1585.8,1585.7,38.50887187]
[1674024169734,5.1e-07,1586.0,1585.9,25.89361056]
[1674024169912,0.11501051,1586.1,1585.9,25.89361056]
[1674024169913,0.11501051,1586.1,1586.0,7.637]
[1674024170122,0.11501051,1586.1,1586.0,18.56961794]
[1674024170391,0.11501051,1586.1,1586.0,30.46946108]
[1674024170576,0.11501051,1586.1,1586.0,30.13935472]
[1674024172241,5.1e-07,1586.1,1586.0,37.10646108]
[1674024172490,5.1e-07,1586.1,1586.0,41.09045778]
[1674024172861,5.1e-07,1586.1,1586.0,41.75036221]
[1674024173072,5.1e-07,1586.1,1586.0,40.10436221]
[1674024175211,5.1e-07,1586.1,1586.0,39.11455259]
[1674024175419,5.1e-07,1586.1,1586.0,24.44201705]
[1674024175648,5.1e-07,1586.1,1586.0,23.12748894]
[1674024175994,5.1e-07,1586.1,1586.0,22.03213407]
[1674024176327,1.42100051,1586.1,1586.0,22.03213407]
[1674024177914,5.1e-07,1586.1,1586.0,22.03213407]
[1674024178130,5.1e-07,1586.1,1586.0,23.12702466]
[1674024178374,5.1e-07,1586.1,1586.0,22.03213407]
[1674024179918,5.1e-07,1586.1,1586.0,23.12703656]
[1674024180355,5.1e-07,1586.1,1586.0,22.03213407]
[1674024180739,5.1e-07,1586.1,1586.0,23.12703446]
[1674024181419,5.1e-07,1586.1,1586.0,22.08174382]
[1674024187389,5.1e-07,1586.1,1586.0,23.17664735]
[1674024187602,5.1e-07,1586.1,1586.0,23.17664553]
[1674024187950,5.1e-07,1586.1,1586.0,22.08174382]
[1674024188160,5.1e-07,1586.1,1586.0,23.17664583]
[1674024188376,5.1e-07,1586.1,1586.0,23.1766481]
[1674024191602,5.1e-07,1586.1,1586.0,22.08174382]
[1674024192660,1.57050056,1586.1,1586.0,0.04960975]
[1674024192876,3.00112578,1586.1,1586.0,0.04960975]
[1674024193415,16.26969833,1586.1,1586.0,0.04960975]
[1674024193739,15.61066578,1586.1,1586.0,0.04960975]
[1674024193918,16.26969833,1586.1,1586.0,0.04960975]
[1674024194583,17.25812511,1586.1,1586.0,0.04960975]
[1674024194951,27.44848663,1586.1,1586.0,9.75e-06]
[1674024195121,2.72581251,1586.0,1585.7,0.25859746]
[1674024195337,4.93919915,1585.8,1585.7,0.25859746]
[1674024195501,18.55111915,1585.8,1585.7,0.25859746]
[1674024195716,18.78111915,1585.8,1585.7,0.25859746]
[1674024195926,22.39475952,1585.8,1585.7,0.25859746]
[1674024196437,22.39475952,1585.8,1585.4,0.075]
[1674024196438,1.0,1585.7,1585.4,0.075]
[1674024196650,2.856,1585.5,1585.4,0.075]
[1674024196861,9.16315,1585.5,1585.4,0.075]
[1674024198637,15.4703,1585.5,1585.4,0.075]
[1674024198847,17.67126852,1585.5,1585.4,0.075]
[1674024201630,17.73421806,1585.5,1585.2,0.05428966]
[1674024201843,1.428,1585.3,1585.2,0.05428966]
[1674024203297,9.16395,1585.3,1585.2,0.05428966]
[1674024203503,15.4719,1585.3,1585.2,0.05428966]
[1674024203699,17.92370732,1585.3,1585.2,0.05428966]
[1674024206420,17.92633254,1585.3,1585.2,0.05428966]
[1674024207789,11.61838254,1585.3,1585.2,0.05428966]
[1674024208315,11.61838254,1585.3,1585.2,0.04428966]
[1674024209890,10.19038254,1585.3,1585.2,0.04428966]
[1674024211308,24.46428254,1585.3,1585.2,0.04428966]
[1674024211473,27.46428254,1585.3,1585.2,0.04428966]
[1674024218948,26.03628254,1585.3,1585.2,0.04428966]
[1674024221513,26.09923208,1585.3,1585.2,0.04428966]
[1674024224342,3.94275686,1585.3,1585.2,0.04428966]
[1674024224554,1.36794954,1585.3,1585.2,0.04428966]
[1674024227085,25.47316534,1585.3,1585.2,0.04428966]
[1674024227294,1.0,1585.2,1584.9,0.05428966]
[1674024227473,7.73714,1585.0,1584.9,0.05428966]
[1674024227690,10.10730341,1585.0,1584.9,0.05428966]
[1674024228150,10.10992863,1585.0,1584.9,0.05428966]
[1674024228366,16.41906863,1585.0,1584.9,0.05428966]
[1674024228958,22.72820863,1585.0,1584.9,0.05428966]
[1674024229152,22.95820863,1585.0,1584.9,0.05428966]
[1674024229571,23.59495036,1585.0,1584.9,0.05428966]
[1674024230016,26.59495036,1585.0,1584.9,0.05428966]
[1674024230363,29.71157443,1585.0,1584.9,0.05428966]
[1674024233059,31.12857443,1585.0,1584.9,0.05428966]
[1674024235994,12.20115443,1585.0,1584.9,0.05428966]
[1674024236211,31.12857443,1585.0,1584.9,0.05428966]
[1674024237068,34.76225529,1585.0,1584.9,0.05428966]
[1674024239888,31.12857443,1585.0,1584.9,0.05428966]
[1674024240091,30.4918327,1585.0,1584.9,0.05428966]
[1674024240306,31.12857443,1585.0,1584.9,0.05428966]
[1674024241335,31.18752397,1585.0,1584.9,0.05428966]
[1674024241551,31.19152397,1585.0,1584.9,0.05428966]
[1674024242809,34.82520483,1585.0,1584.9,0.05428966]
[1674024243020,34.82520483,1585.0,1584.7,0.06958479]
[1674024243021,24.07361034,1584.9,1584.7,0.06958479]
[1674024243279,38.74255891,1584.8,1584.7,4.79e-06]
[1674024243448,39.60930064,1584.8,1584.7,4.79e-06]
[1674024243775,29.76171864,1584.8,1584.7,4.79e-06]
[1674024244234,15.04041284,1584.8,1584.7,4.79e-06]
[1674024245858,8.73047284,1584.8,1584.7,4.79e-06]
[1674024246492,8.96047284,1584.8,1584.7,4.79e-06]
[1674024246917,7.19730608,1584.8,1584.7,4.79e-06]
[1674024247246,6.53994,1584.8,1584.7,4.79e-06]
[1674024248015,0.23,1584.8,1584.7,4.79e-06]
[1674024248165,18.05209295,1585.0,1584.7,4.79e-06]
[1674024248381,14.85922702,1585.0,1584.7,4.79e-06]
[1674024248590,0.23,1584.9,1584.7,4.79e-06]
[1674024251275,9.48906361,1585.0,1584.7,2.6901614]
[1674024251276,0.06294954,1585.0,1584.7,2.6901614]
[1674024251431,0.06294954,1585.0,1584.7,9.0002614]
[1674024253432,0.06294954,1585.0,1584.7,15.3106014]
[1674024256318,0.06294954,1585.0,1584.7,13.8896014]
[1674024256469,0.06294954,1585.0,1584.7,15.3106014]
[1674024257416,0.06294954,1585.0,1584.7,16.57028228]
[1674024259211,0.06294954,1585.0,1584.7,15.14928228]
[1674024259419,0.06294954,1585.0,1584.7,17.83720594]
[1674024260887,0.06294954,1585.0,1584.7,15.3176014]
[1674024261451,6.37189954,1585.1,1584.7,15.3836014]
[1674024264992,6.37189954,1585.1,1584.8,1.424]
[1674024266618,0.06294954,1585.1,1584.8,3.02805425]
[1674024266790,0.06294954,1585.1,1584.9,2.5236572]
[1674024266993,0.06294954,1585.1,1585.0,14.04628]
[1674024267203,0.06294954,1585.1,1585.0,21.45097953]
[1674024267456,0.06294954,1585.1,1585.0,22.71181654]
[1674024267622,0.05994903,1585.1,1585.0,26.38020976]
[1674024268875,0.05994903,1585.1,1585.0,25.11937275]
[1674024269613,0.05994903,1585.1,1585.0,24.02381322]
[1674024273139,0.05994903,1585.1,1585.0,11.40553322]
[1674024273461,0.05994903,1585.1,1585.0,1.428]
[1674024279088,0.05994903,1585.1,1584.9,17.20167]
[1674024281498,6.36791903,1585.3,1584.9,17.26767]
[1674024282837,0.23,1585.2,1584.9,10.9583]
[1674024283052,8.4598899,1585.2,1584.9,10.9583]
[1674024287598,14.7683799,1585.2,1584.9,10.9583]
[1674024288425,17.88500397,1585.2,1584.9,10.9583]
[1674024292100,24.19349397,1585.2,1584.9,0.066]
[1674024292483,24.85177845,1585.2,1584.9,0.066]
[1674024292853,15.10312784,1585.1,1584.9,0.066]
[1674024295603,15.10312784,1585.1,1584.9,0.063121]
[1674024295799,15.10575306,1585.1,1584.9,0.063121]
[1674024301521,15.16570209,1585.1,1584.7,19.56460136]
[1674024301781,15.16570209,1585.1,1584.8,1.09575332]
[1674024301955,1.74657021,1585.0,1584.7,12.59333028]
[1674024302169,14.36534021,1585.0,1584.7,11.33322579]
[1674024302581,14.36534021,1585.0,1584.8,0.22300564]
[1674024302945,1.43653402,1584.9,1584.8,0.22300564]
[1674024303099,7.97607402,1584.9,1584.8,0.22300564]
[1674024304652,7.97607402,1584.9,1584.7,0.06512579]
[1674024318229,2.96562522,1584.8,1584.7,0.06512579]
[1674024318553,9.27556522,1584.8,1584.7,0.06512579]
[1674024318696,18.23028555,1584.8,1584.7,0.06512579]
[1674024320432,18.23028555,1584.8,1584.7,0.06171304]
[1674024321595,18.29023458,1584.8,1584.6,0.07044128]
[1674024322375,21.40685865,1584.8,1584.6,0.07044128]
[1674024322644,27.71679865,1584.8,1584.6,0.07044128]
[1674024322858,2.77167987,1584.7,1584.6,0.07044128]
[1674024323069,9.31201987,1584.7,1584.6,0.07044128]
[1674024329106,9.3719689,1584.7,1584.6,0.07044128]
[1674024331986,3.0616289,1584.7,1584.6,0.07044128]
[1674024332203,0.28994903,1584.7,1584.6,0.07044128]
[1674024332568,0.28994903,1584.7,1584.6,0.32076598]
[1674024342711,7.60028903,1584.7,1584.6,0.32076598]
[1674024343116,8.79228903,1584.7,1584.6,0.32076598]
[1674024343832,7.79228903,1584.7,1584.6,0.32076598]
[1674024344045,9.95298945,1584.7,1584.6,0.32076598]
[1674024352625,9.95298945,1584.7,1584.6,0.31863494]
[1674024356997,10.61127393,1584.7,1584.6,0.31863494]
[1674024357188,9.95298945,1584.7,1584.6,0.31863494]
[1674024358681,10.61127393,1584.7,1584.6,0.31863494]
[1674024359044,9.95298945,1584.7,1584.6,0.31863494]
[1674024360091,20.038238,1584.7,1584.6,0.31863494]
[1674024364418,21.02617937,1584.7,1584.6,0.31863494]
[1674024365127,20.038238,1584.7,1584.6,0.31863494]
[1674024365321,26.348578,1584.7,1584.6,0.31863494]
[1674024365523,27.715086,1584.7,1584.6,0.31863494]
[1674024366177,26.72714463,1584.7,1584.6,0.31863494]
[1674024366399,26.74412641,1584.7,1584.6,0.31863494]
[1674024368128,35.22473129,1584.7,1584.6,0.31863494]
[1674024368482,37.05347302,1584.7,1584.5,0.07044128]
[1674024368672,18.46848948,1584.6,1584.4,0.07565229]
[1674024368885,32.98298794,1584.5,1584.4,0.02565229]
[1674024369243,37.24527808,1584.5,1584.4,0.02565229]
[1674024369450,44.56961923,1584.5,1584.4,0.02565229]
[1674024369679,47.32740944,1584.5,1584.4,0.02565229]
[1674024369980,46.08972858,1584.5,1584.4,0.02565229]
[1674024370331,49.72340944,1584.5,1584.4,0.02565229]
[1674024370608,46.08972858,1584.5,1584.4,0.02565229]
[1674024370760,47.07789159,1584.5,1584.4,0.02565229]
[1674024370974,50.71157245,1584.5,1584.4,0.02565229]
[1674024371229,50.71108323,1584.5,1584.4,0.02565229]
[1674024371561,49.72292022,1584.5,1584.4,0.02565229]
[1674024372283,49.72554544,1584.5,1584.4,0.02565229]
[1674024372647,50.71370845,1584.5,1584.4,0.02565229]
[1674024373382,49.72554544,1584.5,1584.4,0.02565229]
[1674024374029,50.71370845,1584.5,1584.4,0.02565229]
[1674024375164,49.72502924,1584.5,1584.4,0.02565229]
[1674024375379,49.78497827,1584.5,1584.4,0.02565229]
[1674024377375,50.77314128,1584.5,1584.4,0.02565229]
[1674024377547,49.78497827,1584.5,1584.4,0.02565229]
[1674024377747,51.66847134,1584.5,1584.4,0.02565229]
[1674024377955,55.45447134,1584.5,1584.4,0.02565229]
[1674024378622,69.45447134,1584.5,1584.4,0.02565229]
[1674024378947,70.64647134,1584.5,1584.4,0.02565229]
[1674024380190,70.64647134,1584.5,1584.4,0.01323501]
[1674024380379,76.6262726,1584.5,1584.2,0.10163237]
[1674024380594,30.74834407,1584.3,1584.2,0.10163237]
[1674024380790,33.74834407,1584.3,1584.2,0.10163237]
[1674024381000,34.6150858,1584.3,1584.2,0.10163237]
[1674024381422,42.8384858,1584.3,1584.2,0.10163237]
[1674024381621,45.05213576,1584.3,1584.2,0.10163237]
[1674024381835,45.05913525,1584.3,1584.2,0.10163237]
[1674024383560,48.69281611,1584.3,1584.2,0.10163237]
[1674024383945,45.05913525,1584.3,1584.2,0.10163237]
[1674024384189,48.69281611,1584.3,1584.2,0.10163237]
[1674024384360,48.69544133,1584.3,1584.2,0.10163237]
[1674024384576,49.59077139,1584.3,1584.2,0.10163237]
[1674024384780,64.71379827,1584.3,1584.2,0.10163237]
[1674024385310,64.30267052,1584.3,1584.2,0.10163237]
[1674024387354,63.59077139,1584.3,1584.2,0.10163237]
[1674024388497,64.30267002,1584.3,1584.2,0.10163237]
[1674024389342,68.08867002,1584.3,1584.2,0.10163237]
[1674024391363,74.72567002,1584.3,1584.2,0.10163237]
[1674024391588,74.72567002,1584.3,1584.2,2.37e-06]
[1674024391793,4.786,1584.2,1584.1,0.08787501]
[1674024392009,40.81976806,1584.2,1584.1,0.08787501]
[1674024392221,41.45650979,1584.2,1584.1,0.08787501]
[1674024392583,42.16841213,1584.2,1584.1,0.08787501]
[1674024393647,42.11358148,1584.2,1584.1,0.08787501]
[1674024393844,41.45650979,1584.2,1584.1,0.08787501]
[1674024394056,42.16841266,1584.2,1584.1,0.08787501]
[1674024394303,42.16841199,1584.2,1584.1,0.08787501]
[1674024394734,42.11358148,1584.2,1584.1,0.08787501]
[1674024394951,41.45650979,1584.2,1584.1,0.08787501]
[1674024396222,42.11358148,1584.2,1584.1,0.08787501]
[1674024396418,42.16841152,1584.2,1584.1,0.08787501]
[1674024396843,41.45650979,1584.2,1584.1,0.08787501]
[1674024398001,42.16841153,1584.2,1584.1,0.08787501]
[1674024398370,42.57975458,1584.2,1584.1,0.08787501]
[1674024398580,42.16841153,1584.2,1584.1,0.08787501]
[1674024399262,42.57974668,1584.2,1584.1,0.08787501]
[1674024399435,41.38174668,1584.2,1584.1,0.08787501]
[1674024399888,41.43269622,1584.2,1584.1,0.08787501]
[1674024400058,41.03036056,1584.2,1584.1,0.08787501]
[1674024400790,42.33701988,1584.2,1584.1,0.08787501]
[1674024402627,34.02200896,1584.2,1584.1,0.08787501]
[1674024402815,30.2146797,1584.2,1584.1,0.08787501]
[1674024402990,29.50277796,1584.2,1584.1,0.08787501]
[1674024403201,30.21467775,1584.2,1584.1,0.08787501]
[1674024404371,29.57793602,1584.2,1584.1,0.08787501]
[1674024404581,29.57559228,1584.2,1584.1,0.08787501]
[1674024405018,29.52076418,1584.2,1584.1,0.08787501]
[1674024405238,29.9873998,1584.2,1584.1,0.08787501]
[1674024405649,29.57559143,1584.2,1584.1,0.08787501]
[1674024406204,29.98745709,1584.2,1584.1,0.08787501]
[1674024407610,29.75980083,1584.2,1584.1,0.08787501]
[1674024408774,29.98980083,1584.2,1584.1,0.08787501]
[1674024411984,30.97796384,1584.2,1584.1,0.08787501]
[1674024412146,30.95763388,1584.2,1584.1,0.08787501]
[1674024412352,31.59437561,1584.2,1584.1,0.08787501]
[1674024412599,32.27484238,1584.2,1584.1,0.08787501]
[1674024413042,33.47284238,1584.2,1584.1,0.08787501]
[1674024413518,32.48467937,1584.2,1584.1,0.08787501]
[1674024413937,34.13039944,1584.2,1584.1,0.08787501]
[1674024416061,33.49365771,1584.2,1584.1,0.08787501]
[1674024416268,32.81319094,1584.2,1584.1,0.08787501]
[1674024422472,32.70385923,1584.2,1584.1,0.08787501]
[1674024422685,32.04720995,1584.2,1584.1,0.08787501]
[1674024423451,31.05813916,1584.2,1584.1,0.08787501]
[1674024424169,32.2773243,1584.2,1584.1,0.08787501]
[1674024424587,30.95865601,1584.2,1584.1,0.08787501]
[1674024426530,28.09560467,1584.2,1584.1,0.08787501]
[1674024426708,21.78327467,1584.2,1584.1,0.08787501]
[1674024427028,17.1573478,1584.2,1584.1,0.03787501]
[1674024427198,24.45886294,1584.2,1584.1,0.03787501]
[1674024427406,24.45877198,1584.2,1584.1,0.03787501]
[1674024427623,28.47530153,1584.2,1584.1,0.03787501]
[1674024427833,29.77138072,1584.2,1584.1,0.03787501]
[1674024428143,31.78219558,1584.2,1584.1,0.03787501]
[1674024430137,32.77111996,1584.2,1584.1,0.03787501]
[1674024430385,31.78219558,1584.2,1584.1,0.03787501]
[1674024431277,33.42791565,1584.2,1584.1,0.03787501]
[1674024431631,31.78219558,1584.2,1584.1,0.03787501]
[1674024432181,32.79117392,1584.2,1584.1,0.03787501]
[1674024432485,32.10924736,1584.2,1584.1,0.03787501]
[1674024432639,33.30324736,1584.2,1584.1,0.03787501]